Cogmind - Beta 16 @@@ ROGUE MODE // 2025.11.14 @ 15:05:51 Player: shapeshifter Result: Destroyed by Y-64 Sentinel with Wave Gun Performance ------------- Evolutions (6) 3000 Regions Visited (16) 3200 Robots Destroyed (137) 685 Value Destroyed (6436) 6436 Prototype IDs (52) 1040 Alien Tech Used (0) 0 Bonus (2251) 2251 TOTAL SCORE: 16612 Bonus ------- High Alert Combat Kills 235 Follower Combat Kills 1214 Network Hubs Disabled 200 Met Imprinter 300 Was Imprinted 300 Met R17 at Cetus 500 Friendly Fire -498 Cogmind --------- Core Integrity 0/1150 Matter 300/300 Energy 98/100 System Corruption 9% Temperature Cool (9) Movement Core (50) Location -4/Factory Parts ------- > --- POWER (2) -------- (None) > --- PROPULSION (5) --- (None) > --- UTILITY (9) ------ Scrap Engine > --- WEAPON (3) ------- (None) > --- INVENTORY (5) ---- Advanced Target Analyzer Precision Matter Filter Improved Transmission Jammer Experimental System Guard Improved Plasma Cutter Peak State ------------ > --- POWER ------------ Dark-Angular Reactor > --- PROPULSION ------- Hovering Glidesys-FPA Exoskeleton > --- UTILITY ---------- Armored Scrap Engine Improved Cryofiber Web Huge Storage Unit Enhanced Optical Array 0b10 Decoder Chip [Generic] Improved Armor Integrity Analyzer Centrium Medium Armor Plating > --- WEAPON ----------- Hvy. Thermic Construct/C > --- INVENTORY -------- Experimental Power Amplifier Experimental Power Amplifier Advanced Heat Sink Advanced Heat Sink Experimental Heat Sink Advanced Cooling System High-capacity Storage Unit Zionite Biocell Zionite Biocell Matter Compressor Advanced Target Analyzer Recoil Stabilizer Precision Matter Filter Improved Kinecellerator Improved Transmission Jammer Zionite Weapon Casing Experimental Shield Generator Improved Component Analysis Suite Advanced Dynamic Insulation System Experimental System Guard Improved Recalibrator Phasing AFG Improved Plasma Cutter [Rating: 130] Favorites ----------- Power Constructs Engine Cooled Ion Engine Reactor Constructs Propulsion Constructs Treads Light Treads Wheel Subdweller Monowheel Hover Unit Constructs Utility Armored Scrap Engine Device Armored Scrap Engine Storage High-capacity Storage Unit Processor Enhanced Optical Array Hackware System Shield Protection Improved Utility Shielding Weapon Constructs Energy Gun Makeshift Laser Energy Cannon Constructs Ballistic Gun Improved Assault Rifle Ballistic Cannon Assault Cannon Launcher Advanced EMP Blaster Build | -11 -10 -10 -8 -8 -8 -6 -6 -6 -6 -5 -5 -5 -5 -5 -5 -4 ------- Run | Yrd Mat Sub Mat Sto Rec Fac Low Low Zio Pro Fac Ext Cet Arc Hub Fac Slots Evolved 12 | . . . 4 . . 4 . . . . 2 . . . . 2 Power 1 | . . . . . . 1 . . . . . . . . . . Propulsion 3 | . . . 1 . . 1 . . . . . . . . . 1 Utility 7 | . . . 2 . . 2 . . . . 2 . . . . 1 Weapon 1 | . . . 1 . . . . . . . . . . . . . Parts Attached 77 | 7 . 6 12 22 6 3 1 . 2 4 1 3 2 1 3 4 Power 5 | 1 . 1 1 2 . . . . . . . . . . . . Engine 5 | 1 . 1 1 2 . . . . . . . . . . . . Core . | . . . . . . . . . . . . . . . . . Reactor . | . . . . . . . . . . . . . . . . . Propulsion 14 | 2 . 2 3 5 2 . . . . . . . . . . . Treads 10 | 2 . . 2 4 2 . . . . . . . . . . . Leg . | . . . . . . . . . . . . . . . . . Wheel 3 | . . 2 1 . . . . . . . . . . . . . Hover 1 | . . . . 1 . . . . . . . . . . . . Flight . | . . . . . . . . . . . . . . . . . Utility 38 | 2 . 1 7 4 2 3 1 . 2 4 1 3 2 1 3 2 Device 16 | 1 . . 1 . 1 1 1 . 2 3 . 2 1 1 1 1 Storage 5 | 1 . . . 2 . . . . . . . 1 . . . 1 Processor 4 | . . . . . . 1 . . . 1 1 . 1 . . . Hackware 1 | . . . . . . 1 . . . . . . . . . . Protection 12 | . . 1 6 2 1 . . . . . . . . . 2 . Artifact . | . . . . . . . . . . . . . . . . . Weapon 20 | 2 . 2 1 11 2 . . . . . . . . . . 2 Energy Gun 9 | 1 . 1 . 5 1 . . . . . . . . . . 1 Energy Cannon 1 | . . 1 . . . . . . . . . . . . . . Ballistic Gun 8 | 1 . . 1 5 . . . . . . . . . . . 1 Ballistic Cannon 1 | . . . . . 1 . . . . . . . . . . . Launcher 1 | . . . . 1 . . . . . . . . . . . . Special Weapon . | . . . . . . . . . . . . . . . . . Impact Weapon . | . . . . . . . . . . . . . . . . . Slashing Weapon . | . . . . . . . . . . . . . . . . . Piercing Weapon . | . . . . . . . . . . . . . . . . . Special Melee Weapon . | . . . . . . . . . . . . . . . . . Unidentified Prototypes 17 | . . . . 10 2 . . . 1 . . . . . 3 1 Parts Lost 29 | . . 3 2 . . . . . . 1 . 1 . . 1 21 Power 4 | . . 1 . . . . . . . 1 . . . . . 2 Propulsion 7 | . . 1 1 . . . . . . . . . . . 1 4 Utility 12 | . . . 1 . . . . . . . . 1 . . . 10 Weapon 6 | . . 1 . . . . . . . . . . . . . 5 Highest Loss Streak 21 | . . 3 1 . . . . . . 1 . 1 . . 1 21 To Critical Strikes 2 | . . 1 . . . . . . . . . . . . . 1 Average Backups 15 | 4 6 6 4 8 11 18 19 18 18 19 19 20 20 22 22 13 Power . | 1 1 . . . . . . . . . . . . . . . Propulsion 1 | 1 2 1 . 3 4 . . . . . . . . . . . Utility 11 | 1 2 1 2 1 2 15 15 14 15 17 17 16 18 20 21 12 Weapon 1 | 1 1 1 . 2 2 2 3 3 2 . 1 1 1 1 . . Tool/Special . | . . . . . . . . . . . . . . . . . Unused Backups 97 | . . 2 3 2 14 7 7 1 15 12 4 6 1 1 8 14 Power . | . . . . . . . . . . . . . . . . . Propulsion 20 | . . . . 1 14 . . . . 5 . . . . . . Utility 64 | . . . 2 . . 6 7 1 13 5 4 4 1 1 7 13 Weapon 9 | . . 2 1 1 . . . . 2 1 . 1 . . 1 . Tool/Special 4 | . . . . . . 1 . . . 1 . 1 . . . 1 Average Slot Usage (%) 64 | . 100 90 78 99 64 45 53 53 53 53 57 57 58 58 58 37 Engine 4 | . 14 13 9 8 8 3 6 4 . . . 1 2 2 3 . Core 2 | . . . . . . 2 . 1 6 6 5 3 . . . . Treads 5 | . 28 7 2 26 9 . . . . . . 1 . 2 . . Leg 1 | . . . . . . . 4 6 6 4 1 . . . . . Wheel 1 | . . 19 19 . . 3 . . . . . . . . . . Flight 1 | . . . . . 4 1 1 . . . 1 3 5 2 . . Device 14 | . 14 6 7 9 6 9 16 20 20 18 23 22 17 17 17 10 Storage 5 | . 14 6 . 6 5 6 6 6 6 6 5 5 5 5 5 3 Processor 5 | . . . . . . 1 6 6 6 7 10 11 16 17 17 12 Protection 5 | . . 7 17 20 11 4 . . . . . . . . . 1 Energy Gun 1 | . 14 19 9 2 . . . . . . . . . . . . Energy Cannon 1 | . . 4 9 . . 2 1 . 4 . . . . 1 5 3 Ballistic Gun 5 | . 14 3 4 23 11 . . . . . . . . . . . Ballistic Cannon 3 | . . . . . 4 3 4 6 1 5 5 4 4 3 . . Peak Build Rating 130 | 7 8 16 30 34 49 79 83 83 94 107 120 114 120 125 130 122 Average Rating 71 | 5 7 13 22 29 38 62 79 83 85 95 117 111 117 123 122 74 On Entrance 68 | . 7 8 16 26 34 49 79 83 83 88 107 114 109 120 123 114 Avg Prop Armor Cover (%) 4 | . . 21 4 2 . . . . . . . . . . . . Naked Turns . | . . . . . . . . . . . . . . . . . Heaviest Build 136 | 13 13 31 36 66 66 64 64 61 80 88 91 133 89 136 127 88 Greatest Support 93 | 40 40 40 46 62 62 68 84 84 84 84 80 93 93 93 93 62 Greatest Overweight (x) 3 | . . . 1 1 3 1 . . . 1 1 1 . 1 1 3 Average Overweight (x) . | . . . . . . . . . . . 1 . . . . . Largest Inventory Capacity 25 | 8 8 8 5 20 20 20 20 20 20 20 20 25 20 25 25 20 Average Capacity 16 | 7 8 6 5 11 14 20 20 20 20 20 20 21 20 23 22 13 Most Carried 25 | 7 8 8 5 20 20 20 20 20 20 20 20 23 20 25 25 20 Average Carried 15 | 4 6 6 4 8 11 18 19 20 19 19 19 20 19 22 22 12 Final Capacity 25 | 8 8 5 5 20 20 20 20 20 20 20 20 20 20 25 20 5 Final Carried 25 | 6 8 5 4 20 19 20 20 20 20 20 20 20 20 25 20 5 Scrap Engine Consumption 291 | . . . . . 72 25 6 10 11 24 13 58 15 13 22 22 Constructs Created 4 | . . . . . 3 . . . . . . . . . . 1 Constructs Modified 118 | . . . . . 28 7 8 2 5 13 6 24 5 8 12 . Class Distribution -------------------- 64% | Construct 16% | Scavenger-Tank 10% | Mutant 5% | Commander-Construct Dominant Class ---------------- Mutant | -10/Materials Mutant | -10/Subcaves Scavenger-Tank | -8/Materials Scavenger-Tank | -8/Storage Construct | -8/Recycling Construct | -6/Factory Construct | -6/Lower Caves Construct | -6/Lower Caves Construct | -6/Zion Construct | -5/Proximity Caves Construct | -5/Factory Construct | -5/Extension Construct | -5/Cetus Construct | -5/Archives Construct | -5/Hub_04(d) Mutant | -4/Factory Resources | -11 -10 -10 -8 -8 -8 -6 -6 -6 -6 -5 -5 -5 -5 -5 -5 -4 ----------- Run | Yrd Mat Sub Mat Sto Rec Fac Low Low Zio Pro Fac Ext Cet Arc Hub Fac Matter Collected 3500 | 285 10 80 106 790 224 90 110 144 50 339 246 538 158 98 232 . Remotely . | . . . . . . . . . . . . . . . . . Salvage Created 7484 | 136 300 135 107 1008 227 334 408 437 . 681 149 1212 546 680 935 189 Parts 381 | 12 16 8 7 68 19 24 24 17 . 18 6 54 19 40 41 8 Haulers Intercepted 5 | . 1 . . 2 . . . . . . 1 1 . . . . Recyclers Shooed . | . . . . . . . . . . . . . . . . . Parts Field Recycled . | . . . . . . . . . . . . . . . . . Retrieved Matter . | . . . . . . . . . . . . . . . . . Parts Self-Destructed 42 | . . 4 . . . . 19 10 1 8 . . . . . . Prevented 17 | . . . . . . . 2 . . 15 . . . . . . Parts Restored . | . . . . . . . . . . . . . . . . . Kills | -11 -10 -10 -8 -8 -8 -6 -6 -6 -6 -5 -5 -5 -5 -5 -5 -4 ------- Run | Yrd Mat Sub Mat Sto Rec Fac Low Low Zio Pro Fac Ext Cet Arc Hub Fac Combat Hostiles Destroyed 96 | . 8 3 2 16 5 4 7 6 . 6 1 11 7 4 13 3 Guns 29 | . 8 1 . 16 4 . . . . . . . . . . . Cannons 61 | . . 1 2 . 1 3 7 6 . 3 1 11 7 4 13 2 AOE 1 | . . . . . . . . . . . . . . . . 1 Classes Destroyed 18 | 2 3 2 . 4 . 1 2 2 . 1 . 1 . . . . Worker 4 | . . . . 1 . 1 . . . . . . . . 1 1 Builder 2 | . . . . 2 . . . . . . . . . . . . Tunneler 6 | 4 1 . . . . . . . . . . 1 . . . . Hauler 5 | . 1 . . 2 . . . . . . 1 1 . . . . Recycler 5 | 1 . . . 1 . . . . . . . 3 . . . . Mechanic 1 | . . . . 1 . . . . . . . . . . . . Operator 11 | . . . . . . . . . . . . 2 . 9 . . Watcher 5 | . . . . . . 1 . . . . . 1 2 . 1 . Swarmer 10 | . 3 . . 4 . . . . . . . 3 . . . . Grunt 24 | . 5 . . 5 . . 2 4 . 4 . 2 . . 2 . Brawler 1 | . . . . . . . . . . 1 . . . . . . Duelist 1 | . . . . . . . 1 . . . . . . . . . Sentry 23 | . . 1 2 6 1 2 1 . . . . 3 . 4 3 . Hunter 14 | . . . . 1 . 2 2 1 . . . 2 . . 3 3 Programmer 6 | . . . . . . . 1 . . . 1 . . . 4 . Behemoth 3 | . . . . . . . . 1 . 1 . 1 . . . . Cetus Guard 7 | . . . . . . . . . . . . . 7 . . . Lightning 1 | . . . . . . . . . . . . . . . 1 . Subdweller 6 | . . 2 . . 4 . . . . . . . . . . . Savage 1 | . . . . . . . . 1 . . . . . . . . Mutant 1 | . . . . . . . . . . 1 . . . . . . Best Kill Streak 8 | 2 6 1 1 4 1 2 3 4 . 3 1 8 3 5 3 2 Combat Bots Only 6 | . 6 1 1 4 1 1 3 4 . 3 1 4 3 2 3 2 Max Kills in Single Turn 2 | 1 2 1 1 2 1 2 2 1 . 1 1 2 1 1 1 2 Gunslinging . | . . . . . . . . . . . . . . . . . Exploded 1 | . . . . . . . . . . . . . . . . 1 Melee . | . . . . . . . . . . . . . . . . . Uniques/NPCs Destroyed . | . . . . . . . . . . . . . . . . . Combat | -11 -10 -10 -8 -8 -8 -6 -6 -6 -6 -5 -5 -5 -5 -5 -5 -4 -------- Run | Yrd Mat Sub Mat Sto Rec Fac Low Low Zio Pro Fac Ext Cet Arc Hub Fac Hostile Shots Fired 976 | . 48 24 8 61 11 18 35 54 . 63 5 92 72 11 128 346 Missed 335 | . 12 7 2 13 3 7 14 19 . 23 1 23 40 3 39 129 Hits 641 | . 36 17 6 48 8 11 21 35 . 40 4 69 32 8 89 217 Melee 17 | . . . . . . . . . . . . . . . 1 16 Projectile 624 | . 36 17 6 48 8 11 21 35 . 40 4 69 32 8 88 201 AOE 2 | . . . . . . . . . . . . . . . . 2 Critical Strikes 37 | . 1 1 . 2 . 1 . 2 . 3 . 5 4 . 7 11 Damage Taken 12447 | . 405 377 86 645 168 139 340 729 . 681 107 1611 856 206 2184 3913 Core 1919 | . 110 77 . 65 . . 12 33 . 69 42 119 49 26 155 1162 Absorbed by Shields . | . . . . . . . . . . . . . . . . . Redirected to Shielding 169 | . . . . 11 16 . . . . . . . . . . 142 Regen/Repaired (Parts) 3909 | . . . . . 10 123 258 147 486 547 13 967 179 677 502 . Core Remaining (%) 71 | 100 . 25 . . 88 . . . . 86 . . . . 60 . Volleys Fired 540 | 15 27 32 4 65 22 15 25 36 . 40 9 62 54 39 60 35 Largest 3 | 2 2 2 3 3 3 1 1 1 . 1 1 1 1 1 1 1 Hottest 280 | 60 60 190 153 153 74 67 129 129 . 218 215 215 88 152 280 280 Shots Fired 736 | 30 54 55 10 174 40 15 25 36 . 40 9 62 54 39 58 35 Gun 349 | 30 54 49 6 173 29 . . . . . . . . . . 8 Cannon 387 | . . 6 4 1 11 15 25 36 . 40 9 62 54 39 58 27 Launcher . | . . . . . . . . . . . . . . . . . Special . | . . . . . . . . . . . . . . . . . Kinetic 490 | 15 27 8 2 158 38 12 20 36 . 18 9 43 36 39 26 3 Thermal 226 | 15 27 47 8 16 2 . 5 . . 5 . 19 18 . 32 32 Explosive . | . . . . . . . . . . . . . . . . . Electromagnetic 20 | . . . . . . 3 . . . 17 . . . . . . Robot Hit Streak 15 | 7 9 15 6 13 13 10 7 8 . 9 4 8 7 10 8 5 Robot Miss Streak 8 | 2 2 2 1 3 1 8 4 3 . 2 5 4 5 2 3 2 Penetration Max 1 | . . . . . . . . . . . . 1 . . . . Secondary Targets 5 | . 1 . . 4 . . . . . . . . . . . . Max Gunslinging Chain 1 | . 1 . . 1 . . . . . . . . . . . . Shots Hit Robots 460 | 20 38 25 6 109 24 13 13 24 . 22 5 43 31 29 36 22 Core Hits 187 | 8 18 4 3 42 8 13 11 13 . 4 1 17 9 12 14 10 Critical Kills 8 | . . . . 1 . . . . . 1 . . 1 3 2 . Critical Parts Destroyed 9 | . 1 . . 2 . . . . . 1 . . 1 1 3 . Critical Strikes 35 | . 1 2 1 4 . . . . . 2 . 10 4 6 5 . Burn 4 | . . 2 1 1 . . . . . . . . . . . . Destroy 21 | . 1 . . 3 . . . . . 2 . . 4 6 5 . Blast 10 | . . . . . . . . . . . . 10 . . . . Melee Attacks . | . . . . . . . . . . . . . . . . . Impact . | . . . . . . . . . . . . . . . . . Slashing . | . . . . . . . . . . . . . . . . . Piercing . | . . . . . . . . . . . . . . . . . Sneak Attacks . | . . . . . . . . . . . . . . . . . Combat Hostiles . | . . . . . . . . . . . . . . . . . Follow-up Attacks . | . . . . . . . . . . . . . . . . . Damage Inflicted 25404 | 185 372 379 132 1713 481 856 1227 2169 . 1736 381 4588 4043 2603 3423 1116 Guns 3043 | 185 372 327 50 1713 256 . . . . . . . . . . 140 Cannons 21897 | . . 52 82 . 225 856 1227 2169 . 1736 381 4588 4043 2603 3326 609 Explosions 436 | . . . . . . . . . . . . . . . 97 339 Melee . | . . . . . . . . . . . . . . . . . Ramming 28 | . . . . . . . . . . . . . . . . 28 Kinetic 17398 | 87 155 58 14 1551 481 671 918 2169 . 797 381 3213 2435 2603 1839 26 Thermal 6696 | 98 217 321 118 162 . . 309 . . 278 . 1375 1608 . 1487 723 Explosive 339 | . . . . . . . . . . . . . . . . 339 Electromagnetic 943 | . . . . . . 185 . . . 661 . . . . 97 . Impact . | . . . . . . . . . . . . . . . . . Slashing . | . . . . . . . . . . . . . . . . . Piercing . | . . . . . . . . . . . . . . . . . Highest Corruption 19 | . . . . . . . . . . . . . . . 19 9 Average Corruption 6 | . . . . . . . . . . . . . . . 6 7 Corruption Purged . | . . . . . . . . . . . . . . . . . Corruption Blocked . | . . . . . . . . . . . . . . . . . Effects 20 | . . . . . . . . . . . . . . . 17 3 Message Errors 5 | . . . . . . . . . . . . . . . 4 1 Matter Fused 2 | . . . . . . . . . . . . . . . 2 . Heat Flow Errors 4 | . . . . . . . . . . . . . . . 4 . Energy Discharges 3 | . . . . . . . . . . . . . . . 2 1 Parts Rejected 1 | . . . . . . . . . . . . . . . 1 . Data Loss (minor) 2 | . . . . . . . . . . . . . . . 1 1 Data Loss (major) 1 | . . . . . . . . . . . . . . . 1 . Weapon Failures 2 | . . . . . . . . . . . . . . . 2 . Overload Shots 4 | . . 4 . . . . . . . . . . . . . . Overflow Damage 2336 | . . . . . . 26 42 106 . 244 74 547 203 258 795 41 Projectiles 2336 | . . . . . . 26 42 106 . 244 74 547 203 258 795 41 Explosions . | . . . . . . . . . . . . . . . . . Melee . | . . . . . . . . . . . . . . . . . Knockbacks 62 | . . . . . 5 14 8 9 . 1 . 8 3 3 11 . Impact . | . . . . . . . . . . . . . . . . . Kinetic 58 | . . . . . 5 11 8 9 . 1 . 7 3 3 11 . Secondary 4 | . . . . . . 3 . . . . . 1 . . . . Self-Inflicted Damage 103 | . . . . . . . . . . . . . . . 89 14 Shots 1 | . . . . . . . . . . . . . . . 1 . Rammed 3 | . . . . . . . . . . . . . . . . 3 Targets Rammed 3 | . . . . . . . . . . . . . . . . 3 Kicked . | . . . . . . . . . . . . . . . . . Crushed . | . . . . . . . . . . . . . . . . . Highest Temperature 592 | 40 181 138 140 376 86 6 324 316 . 414 84 328 . 266 410 592 Average Temperature 105 | 20 71 29 66 78 27 6 113 132 . 145 27 88 . 97 121 252 Received Heat Transfer 1674 | . 225 114 36 234 30 . 51 111 . 168 9 300 9 18 360 9 Effects 10 | . . . . . . . 1 . . 2 . . . 1 1 5 Shutdowns 1 | . . . . . . . . . . . . . . . . 1 Energy Bleed 3 | . . . . . . . 1 . . . . . . 1 . 1 Interference 4 | . . . . . . . . . . 1 . . . . . 3 Matter Decay 1 | . . . . . . . . . . . . . . . 1 . Short Circuit 1 | . . . . . . . . . . 1 . . . . . . Siege Activations . | . . . . . . . . . . . . . . . . . Martial Activations . | . . . . . . . . . . . . . . . . . Shielding Activations . | . . . . . . . . . . . . . . . . . Robots Disrupted . | . . . . . . . . . . . . . . . . . Combat Hostiles . | . . . . . . . . . . . . . . . . . Robots Corrupted 3 | . . . . . . 1 . . . 2 . . . . . . Combat Hostiles 3 | . . . . . . 1 . . . 2 . . . . . . Parts Fried 5 | . . . . . . . . . . 5 . . . . . . Impact Corruptions . | . . . . . . . . . . . . . . . . . Robots Melted 1 | . . 1 . . . . . . . . . . . . . . Combat Hostiles 1 | . . 1 . . . . . . . . . . . . . . Parts Melted 5 | . . 2 . . 1 . . . . . . 2 . . . . Heat Transferred 4559 | 225 500 790 259 407 . . 200 . . 148 . 624 444 . 222 740 Parts Sabotaged . | . . . . . . . . . . . . . . . . . Parts Stolen . | . . . . . . . . . . . . . . . . . Parts Stripped . | . . . . . . . . . . . . . . . . . Power Chain Reactions . | . . . . . . . . . . . . . . . . . Alert | -11 -10 -10 -8 -8 -8 -6 -6 -6 -6 -5 -5 -5 -5 -5 -5 -4 ------- Run | Yrd Mat Sub Mat Sto Rec Fac Low Low Zio Pro Fac Ext Cet Arc Hub Fac Maximum Alert Level 2 | . . . . . . 1 . . . . 1 2 1 . 2 1 Low Security (%) 74 | 100 100 . 100 100 100 80 . . . . 92 18 2 100 49 65 Level 1 9 | . . . . . . 19 . . . . 7 16 97 . . 34 Level 2 15 | . . . . . . . . . . . . 64 . . 50 . Level 3 . | . . . . . . . . . . . . . . . . . Level 4 . | . . . . . . . . . . . . . . . . . Level 5 . | . . . . . . . . . . . . . . . . . High Security . | . . . . . . . . . . . . . . . . . Max Security . | . . . . . . . . . . . . . . . . . Peak Influence 620 | 5 152 . 30 183 40 220 . . . . 220 620 298 179 578 266 Initial 288 | . . . 5 . 18 200 . . . . . 66 288 86 32 266 Average 151 | 1 50 . 13 74 2 176 . . . . 112 426 231 136 312 180 Influence Increases 5223 | 25 232 20 61 532 166 342 150 150 . 363 357 1246 247 186 856 290 Destroy 0b10 Robot/C 2460 | . 160 20 40 320 20 80 140 120 . 220 200 560 160 80 280 60 Destroy 0b10 Robot/NC 320 | 25 10 . . 35 . 10 . . . 15 10 130 10 45 25 5 Destroy Leader 436 | . 32 . 20 94 . 32 10 30 . 30 32 54 . . 82 20 Allied During Kill 393 | . . . . . . . . . . 38 34 296 19 . 6 . Successful Hack 32 | . . . . 5 22 5 . . . . . . . . . . Select Force Hacks 150 | . 30 . . . 120 . . . . . . . . . . . Disable Machine 480 | . . . . 45 . 15 . . . . 45 45 15 45 225 45 Destroy Structure 512 | . . . 1 3 4 . . . . . 36 146 28 16 238 40 Advance Influence 200 | . . . . . . 200 . . . . . . . . . . Partial Spotted 15 | . . . . . . . . . . . . . . . . 15 Lose Combat Pursuer 225 | . . . . 30 . . . . . 60 . 15 15 . . 105 Influence Decreases 5087 | 25 90 150 73 485 213 190 287 143 22 363 220 867 548 309 404 698 Entered New Map 954 | . . 69 7 . 29 . 57 4 22 . . 71 228 129 60 278 Time Decay 3307 | 25 90 81 66 485 184 190 230 139 . 293 200 556 160 180 288 140 Lost Part 240 | . . . . . . . . . . 10 . 10 . . 10 210 Lost Ally 586 | . . . . . . . . . . 60 20 230 160 . 46 70 Squads Dispatched 13 | . 2 . . 3 . . . . . . 1 1 . . 4 2 Investigation 3 | . 1 . . 1 . . . . . . . 1 . . . . Extermination 3 | . . . . . . . . . . . 1 . . . 1 1 Reinforcement 5 | . 1 . . 1 . . . . . . . . . . 2 1 Assault 1 | . . . . . . . . . . . . . . . 1 . Garrison 1 | . . . . 1 . . . . . . . . . . . . Intercept . | . . . . . . . . . . . . . . . . . Searches Triggered . | . . . . . . . . . . . . . . . . . Construction Impeded 1 | . . . . . . . . . . . . . . . 1 . Haulers Reinforced . | . . . . . . . . . . . . . . . . . Active Scanning Responses . | . . . . . . . . . . . . . . . . . Cargo Convoy Interrupts . | . . . . . . . . . . . . . . . . . Stealth | -11 -10 -10 -8 -8 -8 -6 -6 -6 -6 -5 -5 -5 -5 -5 -5 -4 --------- Run | Yrd Mat Sub Mat Sto Rec Fac Low Low Zio Pro Fac Ext Cet Arc Hub Fac Distress Signals 12 | . 2 . . 2 1 . . . . . . 4 . . 1 2 Communications Jammed . | . . . . . . . . . . . . . . . . . Distress Signals . | . . . . . . . . . . . . . . . . . Times Spotted 189 | . 10 5 2 25 5 6 7 6 . 14 8 31 9 12 31 18 Peak Tracking Total 9 | . 4 2 1 5 1 2 3 4 . 5 4 5 4 2 9 7 Tactical Retreats 11 | . . . . 2 . . . . . 4 . 1 1 . . 3 Traps | -11 -10 -10 -8 -8 -8 -6 -6 -6 -6 -5 -5 -5 -5 -5 -5 -4 ------- Run | Yrd Mat Sub Mat Sto Rec Fac Low Low Zio Pro Fac Ext Cet Arc Hub Fac Traps Triggered 3 | . . . . 2 . 1 . . . . . . . . . . Indirectly . | . . . . . . . . . . . . . . . . . Trap Hack Attempts . | . . . . . . . . . . . . . . . . . Triggered . | . . . . . . . . . . . . . . . . . Disarmed . | . . . . . . . . . . . . . . . . . Reprogrammed . | . . . . . . . . . . . . . . . . . Reused . | . . . . . . . . . . . . . . . . . Traps Extracted . | . . . . . . . . . . . . . . . . . Installed . | . . . . . . . . . . . . . . . . . Triggered . | . . . . . . . . . . . . . . . . . Machines | -11 -10 -10 -8 -8 -8 -6 -6 -6 -6 -5 -5 -5 -5 -5 -5 -4 ---------- Run | Yrd Mat Sub Mat Sto Rec Fac Low Low Zio Pro Fac Ext Cet Arc Hub Fac Machines Disabled 34 | . . 1 . 3 . 1 . . . . 3 3 2 3 15 3 Max in Single Turn 11 | . . 1 . 1 . 1 . . . . 1 . 1 1 11 1 Garrison Access 1 | . . . . . . . . . . . . . . . 1 . Network Hub 1 | . . . . . . . . . . . . . . . 1 . Energy Cycler 2 | . . . . . . . . . . . . 2 . . . . Machines Repaired . | . . . . . . . . . . . . . . . . . Machines Dismantled . | . . . . . . . . . . . . . . . . . Machines Sabotaged . | . . . . . . . . . . . . . . . . . Overloaded Fab Kills . | . . . . . . . . . . . . . . . . . Hacking | -11 -10 -10 -8 -8 -8 -6 -6 -6 -6 -5 -5 -5 -5 -5 -5 -4 --------- Run | Yrd Mat Sub Mat Sto Rec Fac Low Low Zio Pro Fac Ext Cet Arc Hub Fac Machines Accessed 29 | . 2 1 1 4 10 5 2 1 . 1 . . 1 . 1 . Terminals 17 | . 1 . 1 4 5 4 . . . 1 . . 1 . . . Fabricators 1 | . . . . . . 1 . . . . . . . . . . Repair Stations . | . . . . . . . . . . . . . . . . . Recycling Units 5 | . 1 . . . 4 . . . . . . . . . . . Scanalyzers . | . . . . . . . . . . . . . . . . . Garrison Access 1 | . . . . . . . . . . . . . . . 1 . Total Hacks 54 | . 3 1 1 5 27 9 2 1 . 1 . . 3 . 1 . Successful 27 | . 2 1 . 1 16 2 2 1 . 1 . . . . 1 . Failed 27 | . 1 . 1 4 11 7 . . . . . . 3 . . . Catastrophic 6 | . . . 1 3 . 2 . . . . . . . . . . Database Lockouts . | . . . . . . . . . . . . . . . . . Manual 86 | . 2 . . 2 18 2 . . . . 17 21 . . 18 6 Terminals 30 | . 1 . 1 5 12 7 . . . 1 . . 3 . . . Fabricators 2 | . . . . . . 2 . . . . . . . . . . Repair Stations . | . . . . . . . . . . . . . . . . . Recycling Units 15 | . 2 . . . 13 . . . . . . . . . . . Scanalyzers . | . . . . . . . . . . . . . . . . . Garrison Access 1 | . . . . . . . . . . . . . . . 1 . Terminal Hacks 12 | . . 1 . 1 4 2 2 1 . 1 . . . . . . Record 2 | . . . . . . . 1 . . 1 . . . . . . Open Door 2 | . . . . . . . 1 1 . . . . . . . . Alert Level 1 | . . . . . . 1 . . . . . . . . . . Zone Layout 4 | . . . . 1 2 1 . . . . . . . . . . Proto ID Catalog 1 | . . 1 . . . . . . . . . . . . . . Release Object 2 | . . . . . 2 . . . . . . . . . . . Fabricator Hacks . | . . . . . . . . . . . . . . . . . Repair Station Hacks . | . . . . . . . . . . . . . . . . . Recycling Unit Hacks 4 | . 1 . . . 3 . . . . . . . . . . . Retrieve Components 4 | . 1 . . . 3 . . . . . . . . . . . Scanalyzer . | . . . . . . . . . . . . . . . . . Garrison Access Hacks 1 | . . . . . . . . . . . . . . . 1 . Seal Access 1 | . . . . . . . . . . . . . . . 1 . Unauthorized Hacks 10 | . 1 . . . 9 . . . . . . . . . . . Terminals 5 | . . . . . 5 . . . . . . . . . . . Skim 5 | . . . . . 5 . . . . . . . . . . . Fabricators . | . . . . . . . . . . . . . . . . . Repair Stations . | . . . . . . . . . . . . . . . . . Recycling Units 5 | . 1 . . . 4 . . . . . . . . . . . Tunnel 5 | . 1 . . . 4 . . . . . . . . . . . Scanalyzers . | . . . . . . . . . . . . . . . . . Garrison Access . | . . . . . . . . . . . . . . . . . Data Cores Recovered 3 | . . . . . . . . . . . . 2 . . 1 . Used . | . . . . . . . . . . . . . . . . . Hacking Detections 16 | . 1 . 1 3 6 4 . . . . . . 1 . . . Full Trace Events 1 | . . . . 1 . . . . . . . . . . . . Feedback Events . | . . . . . . . . . . . . . . . . . Feedback Blocked . | . . . . . . . . . . . . . . . . . Robot Schematics Acquired 5 | . . . . . . . . . . . . 5 . . . . Robots Built . | . . . . . . . . . . . . . . . . . Authchips . | . . . . . . . . . . . . . . . . . Time . | . . . . . . . . . . . . . . . . . Total Robot Build Rating . | . . . . . . . . . . . . . . . . . Part Schematics Acquired 12 | . . . . . . . . . . . . . . . 12 . Parts Built . | . . . . . . . . . . . . . . . . . Authchips . | . . . . . . . . . . . . . . . . . Time . | . . . . . . . . . . . . . . . . . Total Part Build Rating . | . . . . . . . . . . . . . . . . . Part Studies Acquired . | . . . . . . . . . . . . . . . . . Parts Repaired . | . . . . . . . . . . . . . . . . . Time . | . . . . . . . . . . . . . . . . . Parts Recycled . | . . . . . . . . . . . . . . . . . Recycled Matter . | . . . . . . . . . . . . . . . . . Retrieved Matter . | . . . . . . . . . . . . . . . . . Retrieved Components 7 | . 3 . . . 4 . . . . . . . . . . . Parts Scanalyzed . | . . . . . . . . . . . . . . . . . Part Schematics Acquired . | . . . . . . . . . . . . . . . . . Parts Damaged . | . . . . . . . . . . . . . . . . . Bothacking | -11 -10 -10 -8 -8 -8 -6 -6 -6 -6 -5 -5 -5 -5 -5 -5 -4 ------------ Run | Yrd Mat Sub Mat Sto Rec Fac Low Low Zio Pro Fac Ext Cet Arc Hub Fac Used RIF Installer . | . . . . . . . . . . . . . . . . . Robots Hacked . | . . . . . . . . . . . . . . . . . Non-combat . | . . . . . . . . . . . . . . . . . Combat . | . . . . . . . . . . . . . . . . . Robot Hacks Applied . | . . . . . . . . . . . . . . . . . Relay Couplers Released . | . . . . . . . . . . . . . . . . . Fabnet Peak Effective % . | . . . . . . . . . . . . . . . . . Robots Rewired 11 | . . . . . . . . . . . . 11 . . . . Allies Hacked . | . . . . . . . . . . . . . . . . . Hacks Repelled . | . . . . . . . . . . . . . . . . . Allies | -11 -10 -10 -8 -8 -8 -6 -6 -6 -6 -5 -5 -5 -5 -5 -5 -4 -------- Run | Yrd Mat Sub Mat Sto Rec Fac Low Low Zio Pro Fac Ext Cet Arc Hub Fac Total Allies 38 | . . . . . . . . . 4 . 8 17 . . 5 4 Largest Group 10 | . . . . . . . . . 4 4 4 10 9 . 5 3 Highest-Rated Group 399 | . . . . . . . . . 160 160 272 399 272 . 312 288 Highest-Rated Ally 96 | . . . . . . . . . 41 41 85 85 39 . 70 96 Zionite Dispatches 11 | . . . . . . . . . . . 3 4 . . 2 2 Heavy 2 | . . . . . . . . . . . 1 1 . . . . Light 2 | . . . . . . . . . . . . . . . 1 1 Hacker 3 | . . . . . . . . . . . 2 . . . 1 . Demo 1 | . . . . . . . . . . . . 1 . . . . Kinetic Resupply 1 | . . . . . . . . . . . . 1 . . . . Heavy Resupply 1 | . . . . . . . . . . . . 1 . . . . Hover Resupply 1 | . . . . . . . . . . . . . . . . 1 Total Orders 7 | . . . . . . . . . . . . 5 1 . . 1 STAY 4 | . . . . . . . . . . . . 3 1 . . . DROP 3 | . . . . . . . . . . . . 2 . . . 1 Ally Attacks 190 | . . . . . . . . . . 24 27 94 23 . 17 5 Total Damage 7576 | . . . . . . . . . . 444 1349 4522 418 . 626 217 Kills 57 | . . . . . . . . . . 5 12 35 1 . 4 . Allies Corrupted . | . . . . . . . . . . . . . . . . . Allies Melted 1 | . . . . . . . . . . . . 1 . . . . Intel | -11 -10 -10 -8 -8 -8 -6 -6 -6 -6 -5 -5 -5 -5 -5 -5 -4 ------- Run | Yrd Mat Sub Mat Sto Rec Fac Low Low Zio Pro Fac Ext Cet Arc Hub Fac Active Infowar (turns) 10270 | 1 230 369 148 1388 239 227 485 410 919 2025 582 1635 332 364 682 234 Optics 7764 | . . . . . . 96 485 410 919 2025 582 1635 332 364 682 234 Sensors 5680 | . . . 148 1388 239 227 485 410 473 1119 582 609 . . . . Seismic 600 | 1 230 369 . . . . . . . . . . . . . . Decoding 3821 | . . . . . . . . . . . 574 1635 332 364 682 234 Robot Analysis Total . | . . . . . . . . . . . . . . . . . Derelict Logs Recovered 10 | . . . . . . . 2 3 2 3 . . . . . . Drone Launches . | . . . . . . . . . . . . . . . . . Drone Recoveries . | . . . . . . . . . . . . . . . . . Decoded 0b10 Intel 86 | . . . . . . . . . . . 18 34 2 3 21 8 Traps 3 | . . . . . . . . . . . . 2 . . 1 . Emergency Access 10 | . . . . . . . . . . . 4 3 . . 3 . Items 61 | . . . . . . . . . . . 14 25 . . 14 8 Machines 7 | . . . . . . . . . . . . 3 2 1 1 . Patrols 1 | . . . . . . . . . . . . . . . 1 . Guards 2 | . . . . . . . . . . . . 1 . . 1 . Exits 2 | . . . . . . . . . . . . . . 2 . . Zionite Intel Received 5 | . . . . . . . . . . . 1 2 . . 2 . Branch Access 1 | . . . . . . . . . . . 1 . . . . . Component Schematics 1 | . . . . . . . . . . . . . . . 1 . Unaware Schematics 1 | . . . . . . . . . . . . 1 . . . . Trap Installations 1 | . . . . . . . . . . . . . . . 1 . Depthwide Sectors/-1 1 | . . . . . . . . . . . . 1 . . . . Exploration | -11 -10 -10 -8 -8 -8 -6 -6 -6 -6 -5 -5 -5 -5 -5 -5 -4 ------------- Run | Yrd Mat Sub Mat Sto Rec Fac Low Low Zio Pro Fac Ext Cet Arc Hub Fac Turns Passed 13502 | 211 230 776 161 1388 2615 399 485 410 919 2025 582 1635 332 364 682 288 Spaces Moved 9309 | 105 85 531 112 595 986 581 1212 955 891 1034 321 831 269 192 376 233 Core 154 | 21 . . . . . . . . . . . . . . . 133 Treads 1636 | 84 85 105 18 595 452 . . . . 18 . 167 . 101 11 . Legs 3872 | . . . . . . 42 924 955 891 989 69 2 . . . . Wheels 843 | . . 426 94 . 59 200 . . . 27 . 37 . . . . Hover 590 | . . . . . 2 . . . . . 123 . . . 365 100 Flight 2214 | . . . . . 473 339 288 . . . 129 625 269 91 . . Fastest Speed 33 | 50 160 100 95 152 39 33 33 33 33 79 124 55 55 55 114 50 Average Speed 95 | 138 160 115 110 182 114 57 33 33 64 125 161 128 55 137 139 82 Slowest Speed 393 | 160 160 160 225 235 235 102 33 33 79 189 173 177 55 148 207 393 Overloaded Moves . | . . . . . . . . . . . . . . . . . Propulsion Burnouts . | . . . . . . . . . . . . . . . . . Robots Hopped 2 | . . . . . . . 2 . . . . . . . . . Potential Cave-ins . | . . . . . . . . . . . . . . . . . Cave-ins Triggered . | . . . . . . . . . . . . . . . . . Exploration Rate (%) 55 | 7 18 31 13 65 98 15 99 97 90 97 14 91 70 87 41 9 Regions Visited 16 Branch Regions 11 Pre-discovered Areas 17 | . 1 1 . . 5 . . 1 2 1 . 6 . . . . Known Exits Taken 6 | . . . . . 1 1 . . . 1 1 . . 1 1 . Unknown Exits Taken 10 | 1 1 1 1 1 . . 1 1 1 . . 1 1 . . . Scrap Searched 13 | . . 2 . . . . 3 3 3 2 . . . . . . Spaces Dug 31 | . . . . . 1 . 23 4 . 2 . . . . . 1 Terrain Destroyed 364 | . . . 1 1 2 . 63 52 . 15 5 14 10 8 176 17 Melee . | . . . . . . . . . . . . . . . . . Projectile 190 | . . . 1 1 2 . 63 52 . 15 5 14 10 8 15 4 AOE 174 | . . . . . . . . . . . . . . . 161 13 Terrain Rammed . | . . . . . . . . . . . . . . . . . Walls Destroyed . | . . . . . . . . . . . . . . . . . Machines Disabled . | . . . . . . . . . . . . . . . . . Actions | -11 -10 -10 -8 -8 -8 -6 -6 -6 -6 -5 -5 -5 -5 -5 -5 -4 --------- Run | Yrd Mat Sub Mat Sto Rec Fac Low Low Zio Pro Fac Ext Cet Arc Hub Fac Total 13298 | 143 131 642 139 762 2456 635 1272 1013 1242 1725 378 1334 399 255 478 294 Wait 2846 | 6 18 59 . 23 1389 10 21 21 301 606 35 242 70 11 21 13 Move 9290 | 104 84 530 111 594 985 580 1208 954 890 1033 320 830 268 191 375 233 Hop 1 | . . . . . . . 1 . . . . . . . . . Pick Up 154 | 11 2 5 3 26 17 10 5 1 22 20 7 10 2 8 5 . Fast Attach 35 | 2 . 1 10 14 2 2 1 . . . . . . . 1 2 Attach 27 | 5 . 4 . 4 1 1 . . 3 1 2 1 . . 1 4 Detach 4 | . . . . 1 1 . . . 1 . . . . . . 1 Swap 47 | . . 2 3 10 8 . . . 3 6 . 5 2 2 5 1 Drop 164 | . . 8 8 25 31 9 8 1 22 19 5 9 3 4 10 2 Fire 540 | 15 27 32 4 65 22 15 25 36 . 40 9 62 54 39 60 35 Melee . | . . . . . . . . . . . . . . . . . Ram 3 | . . . . . . . . . . . . . . . . 3 Kick . | . . . . . . . . . . . . . . . . . Crush . | . . . . . . . . . . . . . . . . . Escape Stasis 8 | . . . . . . 8 . . . . . . . . . . Rewire 178 | . . . . . . . 3 . . . . 175 . . . . Trap . | . . . . . . . . . . . . . . . . . Miscellaneous 1 | . . 1 . . . . . . . . . . . . . . Route ------- -11/Scrapyard -10/Materials -10/Subcaves (discovered 2 exits: *Mat / [*Scr]) -8/Materials -8/Storage -8/Recycling -6/Factory -6/Lower Caves -6/Lower Caves (discovered 2 exits: *Fac / [*Zio]) -6/Zion -5/Proximity Caves -5/Factory (discovered 4 exits: Upp x2 / *Ext x2) -5/Extension (discovered 3 exits: *Fac x2 / *Cet) -5/Cetus (discovered 2 exits: *Fac / [*Arc]) -5/Archives (discovered 3 exits: *Fac / *Hub x2) -5/Hub_04(d) (discovered 2 exits: *Fac x2) -4/Factory History --------- Turn | Location | Event 13 | -11/Scrapyard | Discovered new exit (range 15) 212 | -11/Scrapyard | Entered Materials 308 | -10/Materials | Build established: Mutant 430 | -10/Materials | Discovered new exit (range 9) 442 | -10/Materials | Entered Subcaves 443 | -10/Subcaves | Approached by a straggling Scientist 452 | -10/Subcaves | Learned location of Zion (-6) 452 | -10/Subcaves | Met a Zionite searching for "candidates" 454 | -10/Subcaves | Shifting Twisted Machinery released Mak. Laser 630 | -10/Subcaves | Core integrity fell below 50% 661 | -10/Subcaves | A swath of the cavern ceiling suddenly collapsed 678 | -10/Subcaves | Lost 3 parts (1p1n1w) 770 | -10/Subcaves | Visited 4L-MR0's lab 783 | -10/Subcaves | Found Meta Core 957 | -10/Subcaves | Disturbed a concealed Subdweller 1210 | -10/Subcaves | Discovered new exit (range 8) 1218 | -10/Subcaves | Entered Materials 1218 | -8/Materials | Evolved 4 slots: Propulsion x1, Utility x2, Weapon x1 1320 | -8/Materials | Discovered new exit (range 9) 1379 | -8/Materials | Entered Storage 1708 | -8/Storage | Garrison activated, responded to threat 1779 | -8/Storage | Build established: Scavenger-Tank 2356 | -8/Storage | Used back door to open Recycling access 2356 | -8/Storage | Discovered new exit (range 4) 2767 | -8/Storage | Entered Recycling 3430 | -8/Recycling | Learned 2 Storage zone layouts 3451 | -8/Recycling | Discovered new exit (range 7) 3461 | -8/Recycling | Learned Factory stockpile data 3484 | -8/Recycling | Identified exit to Factory 3499 | -8/Recycling | Learned 4 Lower Caves zone layouts 3504 | -8/Recycling | Learned location of 1 exit from Recycling 3518 | -8/Recycling | Learned location of Extension (-5) 3606 | -8/Recycling | Entered Scraplab 3615 | -8/Recycling | Found Prototype Device 3615 | -8/Recycling | Identified Scrap Engine 4162 | -8/Recycling | Build established: Construct 5382 | -8/Recycling | Entered Factory 5382 | -6/Factory | Evolved 4 slots: Power x1, Propulsion x1, Utility x2 5383 | -6/Factory | Identified exit to Lower Caves 5781 | -6/Factory | Entered Lower Caves 5805 | -6/Lower Caves | Attracted the attention of an 0b10 checkpoint 5863 | -6/Lower Caves | Encountered a Warlord checkpoint 5893 | -6/Lower Caves | Entered a destroyed Warlord outpost 5919 | -6/Lower Caves | Ambushed by research squad 5933 | -6/Lower Caves | Learned location of 1 exit from Proximity Caves 5934 | -6/Lower Caves | Learned 8 Factory zone layouts 6024 | -6/Lower Caves | Discovered new exit (range 5) 6082 | -6/Lower Caves | Found Prototype Device 6266 | -6/Lower Caves | Entered another Lower Caves area 6270 | -6/Lower Caves | Learned Factory security intel 6303 | -6/Lower Caves | Learned Factory terminal intel 6318 | -6/Lower Caves | Discovered new exit (range 4) 6565 | -6/Lower Caves | Spotted B-75 Beast 6624 | -6/Lower Caves | Destroyed B-75 Beast 6648 | -6/Lower Caves | Discovered new exit (range 12) 6652 | -6/Lower Caves | Encountered a Warlord checkpoint 6676 | -6/Lower Caves | Entered Zion 6682 | -6/Zion | Learned Factory machine intel 6696 | -6/Zion | Discovered new exit (range 18) 6701 | -6/Zion | Found Prototype Device 6753 | -6/Zion | Learned Factory interactive machine intel 6834 | -6/Zion | Met Imprinter 6848 | -6/Zion | Imprinted 6850 | -6/Zion | Declared Zion's savior 7032 | -6/Zion | Learned location of Warlord (-4) 7098 | -6/Zion | Identified Phasing AFG 7115 | -6/Zion | Found Prototype Hackware 7141 | -6/Zion | Found Prototype Processor 7144 | -6/Zion | Found Prototype Processor 7146 | -6/Zion | Found Prototype Processor 7162 | -6/Zion | Found Prototype Processor 7163 | -6/Zion | Found Prototype Processor 7192 | -6/Zion | Identified Exp. Targeting Computer 7271 | -6/Zion | Identified Exp. Signal Interpreter 7292 | -6/Zion | Identified Exp. Core Analyzer 7351 | -6/Zion | Identified Exp. System Shield 7358 | -6/Zion | Identified Exp. Target Analyzer (x2) 7388 | -6/Zion | Identified Heart of Steel 7595 | -6/Zion | Entered Proximity Caves 7595 | -5/Proximity Caves | Accompanied by 4 allies 7596 | -5/Proximity Caves | Identified exit to Factory 7664 | -5/Proximity Caves | Learned Factory trap positions 7763 | -5/Proximity Caves | Attracted the attention of an 0b10 checkpoint 7880 | -5/Proximity Caves | Spotted B-75 Beast 7925 | -5/Proximity Caves | Destroyed B-75 Beast 7963 | -5/Proximity Caves | Lost 3 allies 8433 | -5/Proximity Caves | Found Prototype Device 8494 | -5/Proximity Caves | Identified Exp. Shield Generator 9620 | -5/Proximity Caves | Entered Factory 9620 | -5/Factory | Evolved 2 slots: Utility x2 9621 | -5/Factory | Identified exit to Upper Caves 9623 | -5/Factory | Loaded intel: 75 trap records 9625 | -5/Factory | Loaded intel: 269 machine locations 9626 | -5/Factory | Loaded intel: 56 interactive machine locations 9627 | -5/Factory | Loaded intel: 28 terminal locations 9704 | -5/Factory | Zion Hacker squad teleported in 9894 | -5/Factory | Retrieved Zion intel report: Branch Access 9894 | -5/Factory | Identified exit to Extension 9895 | -5/Factory | Zion Heavy squad teleported in 10039 | -5/Factory | Zion Hacker squad teleported in 10087 | -5/Factory | Found Prototype Launcher 10202 | -5/Factory | Entered Extension 10202 | -5/Extension | Accompanied by 4 allies 10274 | -5/Extension | Zion Heavy Resupply teleported in 10335 | -5/Extension | Energy Cycler disabled 10335 | -5/Extension | Rescued a captive Derelict 10335 | -5/Extension | Rescued a captive Derelict 10338 | -5/Extension | Rescued a captive Derelict 10340 | -5/Extension | Rescued a captive Derelict 10408 | -5/Extension | Zion Demo squad teleported in 10808 | -5/Extension | Spotted B-75 Beast 10824 | -5/Extension | Allies destroyed B-75 Beast 10835 | -5/Extension | Discovered new exit (range 21) 10837 | -5/Extension | Spotted B-75 Beast 10865 | -5/Extension | Destroyed B-75 Beast 10920 | -5/Extension | Lost 8 allies 10923 | -5/Extension | Extracted ID and sensor layout for unrecognized location from A7's data core 11092 | -5/Extension | Retrieved Zion intel report: Unaware Schematics 11093 | -5/Extension | Zion Heavy squad teleported in 11439 | -5/Extension | Retrieved Zion intel report: Depthwide Sectors/-4 11440 | -5/Extension | Zion Kinetic Resupply teleported in 11536 | -5/Extension | Identified Tesla Bomb Launcher 11608 | -5/Extension | Build established: Commander-Construct 11609 | -5/Extension | Discovered new exit (range 10) 11610 | -5/Extension | Discovered new exit (range 6) 11703 | -5/Extension | Terminal network hard line cut 11837 | -5/Extension | Entered Cetus 11837 | -5/Cetus | Accompanied by 9 allies 11851 | -5/Cetus | Spotted Cetus Guard 11851 | -5/Cetus | Spotted Cetus Guard 11851 | -5/Cetus | Spotted Cetus Guard 11851 | -5/Cetus | Spotted Cetus Guard 11877 | -5/Cetus | Destroyed Cetus Guard 11879 | -5/Cetus | Destroyed Cetus Guard 11881 | -5/Cetus | Allies destroyed Cetus Guard 11881 | -5/Cetus | Destroyed Cetus Guard 11912 | -5/Cetus | Lost 7 allies 11920 | -5/Cetus | Cetus Manufacturing Module disabled 11927 | -5/Cetus | Discovered new exit (range 21) 11961 | -5/Cetus | Spotted Cetus Guard 11961 | -5/Cetus | Spotted Cetus Guard 11961 | -5/Cetus | Spotted Cetus Guard 11961 | -5/Cetus | Spotted Cetus Guard 12001 | -5/Cetus | Destroyed Cetus Guard 12012 | -5/Cetus | Destroyed Cetus Guard 12061 | -5/Cetus | Destroyed Cetus Guard 12091 | -5/Cetus | Destroyed Cetus Guard 12122 | -5/Cetus | Discovered new exit (range 21) 12142 | -5/Cetus | Scared off Revision 17 12156 | -5/Cetus | Build established: Construct 12169 | -5/Cetus | Entered Archives 12243 | -5/Archives | Discovered new exit (range 21) 12250 | -5/Archives | Identified exit to Factory 12348 | -5/Archives | Identified exit to Hub_04(d) 12533 | -5/Archives | Entered Hub_04(d) 12557 | -5/Hub_04(d) | Zion Light squad teleported in 12577 | -5/Hub_04(d) | Zion Hacker squad teleported in 12713 | -5/Hub_04(d) | Found Prototype Protection 12714 | -5/Hub_04(d) | Lost 5 allies 12754 | -5/Hub_04(d) | Discovered exit to Factory (range 15) 12817 | -5/Hub_04(d) | Identified Zio. Weapon Casing 12868 | -5/Hub_04(d) | Network Hub disabled 13006 | -5/Hub_04(d) | Retrieved Zion intel report: Component Schematics 13070 | -5/Hub_04(d) | Discovered exit to Factory (range 22) 13077 | -5/Hub_04(d) | Retrieved Zion intel report: Trap Installations 13133 | -5/Hub_04(d) | First assault squad dispatched 13133 | -5/Hub_04(d) | Spotted Lightning 13133 | -5/Hub_04(d) | Spotted Lightning 13133 | -5/Hub_04(d) | Spotted Lightning 13164 | -5/Hub_04(d) | Destroyed Lightning 13168 | -5/Hub_04(d) | System corruption reached 10% 13215 | -5/Hub_04(d) | Entered Factory 13215 | -4/Factory | Evolved 2 slots: Propulsion x1, Utility x1 13268 | -4/Factory | Zion Light squad teleported in 13333 | -4/Factory | Lost 3 allies 13417 | -4/Factory | Zion Hover Resupply teleported in 13437 | -4/Factory | Core integrity fell below 50% 13479 | -4/Factory | Core integrity fell below 20% 13480 | -4/Factory | Lost 21 parts (2p4n10u5w) 13503 | -4/Factory | Destroyed by Y-64 Sentinel with Wave Gun Last Messages --------------- 13449_ System corrupted by crushing effect (+1). 13449_ System corrupted by crushing effect (+4). 13449_ System corrupted by crushing effect (+2). 13449_ Knocked back. 13449_ U-05 Engineer destroyed. 13449_ Knocked back. 13450_ Scrap Engine consumes Imp. Power Shielding. 13450_ K-01 Serf collects debris. 13451_ Scrap Engine consumes Imp. Power Shielding. 13451_ K-01 Serf cleans the Pressure Siphon. 13454_ Scrap Engine consumes Mass Driver. 13458_ System corrupted: Component data lost. 13460_ K-01 Serf cleans the Pressure Siphon. 13461_ ALERT: Potential suspicious activity detected, Programmers report to Factory Zone 6Z. 13480_ Scrap Engine consumes Centrium Wheel. 13480_ System corrupted: Energy discharge (-35). 13498_ &UWOQ IXSDD|PTTQINYI 13501_ Penetrated by Slug. 13501_ C-35 Carver suffers critical hit (Destroy). Map ----- +----------------------------------------------------+ | ??????????????????????# | | ??????????????????????# | | ??????????????????????+ | | ??????????????????????# | | ??????????????????????+ | | ??????????????????????### #+####+##############+## | | ????????????????????????# # #?????! | | ????????????????????????# # """"""""" #??? | | ????????????????????????# # #??# =! | | ????????????????????????# # """"""""" #??# =! | | ????????????????????????# # #??# """ | | ????????????????????????# # """"""""" #??# """ | | ????????????????????????# # #??# """ | | ????????????????????????# # * ??????# | | ????????????????????????# # ???????#???#### | | ????????????????????????# # ????????????????? | | ????????????????????????# # ?????????????????? | | ????????????????????????# # ?????????????????? | | ????????????????????????# #####??????????????????? | | ????????????????????????# #??????????????????????? | | ????????????????????????#c#??????????????????????? | | ????????????????????????# #########??????????????? | | ????????????????????????# +??????????? | | ????????????????????????# #########??????????????? | | ????????????????????????#c#??????????????????????? | | ????????????????????????#@#??????????????????????? | | ????????????????????????# #??????????????????????? | | ????????????????????????# #??????????????????????? | | ????????????????????????# +??????????????????????? | | ????????????????????????# #??????????????????????? | | ????????????????????????# #??????????????????????? | | ????????????????????????# #??????????????????????? | | ???????????????????????? ??????????????????????? | | ???????????????????????? ??????????????????????? | | ???????????????????????? Y ??????????????????????? | | ???????????????????????? k ??????????????????????? | | ???????????????????????? ??????????????????????? | | ????????????????????????#+#??????????????????????? | | ?????????????????????????????????????????????????? | | ?????????????????????????????????????????????????? | | ?????????????????????????????????????????????????? | | ?????????????????????????????????????????????????? | | ?????????????????????????????????????????????????? | | ?????????????????????????????????????????????????? | | ?????????????????????????????????????????????????? | | ?????????????????????????????????????????????????? | | ?????????????????????????????????????????????????? | | ?????????????????????????????????????????????????? | | ?????????????????????????????????????????????????? | | ?????????????????????????????????????????????????? | +----------------------------------------------------+ Best States ------------- Heat Dissipation 116 Energy Generation 35 Energy Capacity 762 Matter Stores 300 Matter Capacity 300 Sight Range 22 Robot Scan Range 16 Terrain Scan Density 10 Base Temperature (-) 150 Armor Coverage 800 Utility Shielding 66 Weapon Shielding 100 Evasion (%) 68 Armor Integrity Analysis 40 Recoil Reduction 4 Defensive Hacking 10 Authchip Count 15 Item Schematics ----------------- Arm. Medium Treads | -5/Hub_04(d) | Z-intel Imp. Target Analyzer | -5/Hub_04(d) | Z-intel Cloaking Device | -5/Hub_04(d) | Z-intel Mass Driver | -5/Hub_04(d) | Z-intel Coil Gun | -5/Hub_04(d) | Z-intel Adv. Terrain Scan Processor | -5/Hub_04(d) | Z-intel Imp. Dynamic Insulation System | -5/Hub_04(d) | Z-intel Com. Matter Pod | -5/Hub_04(d) | Z-intel Imp. Utility Shielding | -5/Hub_04(d) | Z-intel Imp. Particle Charger | -5/Hub_04(d) | Z-intel Katana | -5/Hub_04(d) | Z-intel Adv. System Shield | -5/Hub_04(d) | Z-intel Robot Schematics ------------------ G-50 Soldier | -5/Extension | Z-intel R-10 Processor | -5/Extension | Z-intel B-60 Warrior | -5/Extension | Z-intel H-66 Slayer | -5/Extension | Z-intel B-48 Gladiator | -5/Extension | Z-intel Fabricated ------------ Nothing Repaired ---------- Nothing Studied --------- None Alien Tech Used ----------------- None Achievements -------------- Bigger Is Better Wiki Contributor Challenges ------------ None Game ------ Seed WarlordAlertAutopenetrator Manual? 0 Play Time 01:57:57 Cumulative 501.7 hours Start 2025.11.14 @ 11:58:09 End 2025.11.14 @ 15:05:51 Sessions 2 Manual Loads 0 Difficulty Rogue Special Mode None Game No. 676 Rogue 676 Adventurer 0 Explorer 0 Win Type - Total 16 Types 8/0/2/2/1/0/2/1/0/0 Lore% 91 Gallery% 85 Achievement% 67 Wizard Run 0 Options --------- Layout 0 ASCII 0 Keyboard 0 Movement Mouse Keybinds 0 Fullscreen 1 Font 24/Terminus Map View 76x50 Zoom Use 0% Tactical HUD 1 Map Filters NONE Filters NONE Steam 1 RUN: d378cb1d-8863-43af-aafc-9a50cafa9912